fUST/lending_fUST_20241204
["ID","MTS","AMOUNT","RATE_DAILY","PERIOD"]
[344141756,1733295045404,-500.0,0.00030136,7]
[344141757,1733295045415,-500.0,0.00030136,7]
[344141758,1733295045426,-500.0,0.00030136,7]
[344141759,1733295045436,-500.0,0.00030136,7]
[344141760,1733295045448,-214.18,0.00030136,7]
[344141761,1733295045459,-500.0,0.00030136,7]
[344141762,1733295045469,-500.0,0.00030136,7]
[344141763,1733295045481,-500.0,0.00030136,7]
[344141764,1733295045491,-500.0,0.00030136,7]
[344141765,1733295045503,-500.0,0.00030136,7]
[344141766,1733295045514,-500.0,0.00030136,7]
[344141767,1733295045525,-253.53,0.00030136,7]
[344141768,1733295045536,-500.0,0.00030136,7]
[344141769,1733295045548,-500.0,0.00030136,7]
[344141770,1733295045559,-500.0,0.00030136,7]
[344141771,1733295045571,-500.0,0.00030136,7]
[344141772,1733295045585,-513.41693122,0.00030136,7]
[344141773,1733295045597,-500.0,0.00030136,7]
[344141774,1733295045608,-500.0,0.00030136,7]
[344141775,1733295045619,-500.0,0.00030136,7]
[344141776,1733295045630,-500.0,0.00030136,7]
[344141777,1733295045641,-418.17698087,0.00030136,7]
[344141778,1733295045654,-500.0,0.00030136,7]
[344141779,1733295045665,-500.0,0.00030136,7]
[344141780,1733295045675,-500.0,0.00030136,7]
[344141781,1733295045685,-524.12596111,0.00030136,7]
[344141782,1733295045695,-500.0,0.00030136,7]
[344141783,1733295045704,-500.0,0.00030136,7]
[344141784,1733295045714,-512.66904766,0.00030136,7]
[344141785,1733295045725,-500.0,0.00030136,7]
[344141786,1733295045736,-500.0,0.00030136,7]
[344141787,1733295045746,-500.0,0.00030136,7]
[344141788,1733295045757,-203.00092653,0.00030136,7]
[344141789,1733295045769,-500.0,0.00030136,7]
[344141790,1733295045779,-500.0,0.00030136,7]
[344141791,1733295045790,-500.0,0.00030136,7]
[344141792,1733295045801,-500.0,0.00030136,7]
[344141793,1733295045811,-506.8956542,0.00030136,7]
[344141794,1733295045823,-500.0,0.00030136,7]
[344141795,1733295045834,-510.69278094,0.00030136,7]
[344141796,1733295045845,-500.0,0.00030136,7]
[344141797,1733295045854,-500.0,0.00030136,7]
[344141798,1733295045865,-503.59843378,0.00030136,7]
[344141799,1733295045876,-500.0,0.00030136,7]
[344141800,1733295045890,-500.0,0.00030136,7]
[344141801,1733295045901,-500.0,0.00030136,7]
[344141802,1733295045912,-500.0,0.00030136,7]
[344141803,1733295045924,-500.0,0.00030136,7]
[344141804,1733295045936,-500.0,0.00030136,7]
[344141805,1733295045947,-502.97005945,0.00030136,7]
[344141806,1733295045958,-414.13852082,0.00030136,7]
[344141807,1733295045969,-508.57165029,0.00030136,7]
[344141808,1733295045979,-500.0,0.00030136,7]
[344141809,1733295045990,-272.92280239,0.00030136,7]
[344141810,1733295045999,-500.0,0.00030136,7]
[344141811,1733295046011,-280.71465637,0.00030136,7]
[344141812,1733295046020,-500.0,0.00030136,7]
[344141813,1733295046030,-500.0,0.00030136,7]
[344141814,1733295046040,-500.0,0.00030136,7]
[344141815,1733295046051,-500.0,0.00030136,7]
[344141816,1733295046062,-500.0,0.00030136,7]
[344141817,1733295046075,-500.0,0.00030136,7]
[344141818,1733295046087,-239.15417626,0.00030136,7]
[344141819,1733295046097,-502.62683356,0.00030136,7]
[344141820,1733295046108,-502.09061141,0.00030136,7]
[344141821,1733295046120,-500.0,0.00030136,7]
[344141823,1733295046132,-500.0,0.00030136,7]
[344141824,1733295046142,-211.63212687,0.00030136,7]
[344141825,1733295046154,-500.0,0.00030136,7]
[344141826,1733295046166,-508.01798971,0.00030136,7]
[344141827,1733295046176,-500.0,0.00030136,7]
[344141829,1733295046186,-500.0,0.00030136,7]
[344141830,1733295046196,-513.51452667,0.00030136,7]
[344141831,1733295046206,-500.0,0.00030136,7]
[344141832,1733295046217,-500.0,0.00030136,7]
[344141833,1733295046227,-202.0547048,0.00030136,7]
[344141834,1733295046238,-500.0,0.00030136,7]
[344141836,1733295046248,-500.0,0.00030136,7]
[344141838,1733295046260,-500.0,0.00030136,7]
[344141840,1733295046271,-500.0,0.00030136,7]
[344141842,1733295046283,-183.29877945,0.00030136,7]
[344141844,1733295046294,-501.13999047,0.00030136,7]
[344141846,1733295046305,-500.0,0.00030136,7]
[344141848,1733295046315,-483.11115449,0.00030136,7]
[344141850,1733295046325,-500.0,0.00030136,7]
[344141851,1733295046335,-503.32485801,0.00030136,7]
[344141853,1733295046346,-500.0,0.00030136,7]
[344141855,1733295046356,-500.0,0.00030136,7]
[344141857,1733295046366,-500.0,0.00030136,7]
[344141858,1733295046377,-500.0,0.00030136,7]
[344141859,1733295046387,-500.0,0.00030136,7]
[344141860,1733295046396,-500.0,0.00030136,7]
[344141861,1733295046407,-500.0,0.00030136,7]
[344141862,1733295046423,-500.0,0.00030136,7]
[344141863,1733295046441,-500.0,0.00030136,7]
[344141864,1733295046454,-500.0,0.00030136,7]
[344141865,1733295046470,-500.0,0.00030136,7]
[344141866,1733295046483,-500.0,0.00030136,7]
[344141867,1733295046493,-500.0,0.00030136,7]
[344141868,1733295046504,-500.0,0.00030136,7]
[344141869,1733295046515,-500.0,0.00030136,7]
[344141871,1733295046527,-500.0,0.00030136,7]
[344141873,1733295046537,-500.0,0.00030136,7]
[344141875,1733295046549,-500.0,0.00030136,7]
[344141877,1733295046560,-500.0,0.00030136,7]
[344141879,1733295046570,-500.0,0.00030136,7]
[344141881,1733295046581,-182.93341813,0.00030136,7]
[344141883,1733295046591,-500.0,0.00030136,7]
[344141884,1733295046603,-500.0,0.00030136,7]
[344141887,1733295046741,-500.0,0.00030136,7]
[344141888,1733295046751,-500.0,0.00030136,7]
[344141889,1733295046761,-500.0,0.00030136,7]
[344141890,1733295046771,-500.0,0.00030136,7]
[344141891,1733295046782,-500.0,0.00030136,7]
[344141892,1733295046791,-500.0,0.00030136,7]
[344141893,1733295046802,-500.0,0.00030136,7]
[344141894,1733295046812,-500.0,0.00030136,7]
[344141895,1733295046822,-401.08401101,0.00030136,7]
[344141896,1733295046832,-500.0,0.00030136,7]
[344141897,1733295046842,-500.0,0.00030136,7]
[344141898,1733295046852,-500.0,0.00030136,7]
[344141899,1733295046863,-500.0,0.00030136,7]
[344141900,1733295046873,-500.0,0.00030136,7]
[344141902,1733295046883,-500.0,0.00030136,7]
[344141904,1733295046897,-500.0,0.00030136,7]
[344141905,1733295046907,-500.0,0.00030136,7]
[344141906,1733295046917,-500.0,0.00030136,7]
[344141907,1733295046926,-500.0,0.00030136,7]
[344141908,1733295046937,-500.0,0.00030136,7]
[344141909,1733295046948,-500.0,0.00030136,7]
[344141910,1733295046958,-500.0,0.00030136,7]
[344141911,1733295046968,-500.0,0.00030136,7]
[344141912,1733295046980,-500.0,0.00030136,7]
[344141913,1733295046990,-512.05185354,0.00030136,7]
[344141914,1733295047000,-500.0,0.00030136,7]
[344141915,1733295047011,-506.41696171,0.00030136,7]
[344141916,1733295047021,-500.0,0.00030136,7]
[344141917,1733295047030,-500.0,0.00030136,7]
[344141918,1733295047041,-500.0,0.00030136,7]
[344141919,1733295047051,-507.9789601,0.00030136,7]
[344141920,1733295047061,-500.0,0.00030136,7]
[344141921,1733295047071,-500.0,0.00030136,7]
[344141922,1733295047081,-563.28,0.00030136,7]
[344141923,1733295047090,-500.0,0.00030136,7]
[344141924,1733295047099,-500.0,0.00030136,7]
[344141925,1733295047109,-500.0,0.00030136,7]
[344141926,1733295047119,-500.0,0.00030136,7]
[344141927,1733295047129,-504.15790831,0.00030136,7]
[344141928,1733295047139,-500.0,0.00030136,7]
[344141929,1733295047148,-507.57399157,0.00030136,7]
[344141930,1733295047158,-503.67359718,0.00030136,7]
[344141931,1733295047168,-503.4992487,0.00030136,7]
[344141932,1733295047178,-505.18989752,0.00030136,7]
[344141933,1733295047187,-500.0,0.00030136,7]
[344141934,1733295047197,-513.73224709,0.00030136,7]
[344141935,1733295047208,-539.63647552,0.00030136,7]
[344141936,1733295047218,-503.97585722,0.00030136,7]
[344141937,1733295047228,-500.0,0.00030136,7]
[344141938,1733295047238,-500.0,0.00030136,7]
[344141939,1733295047247,-500.0,0.00030136,7]
[344141940,1733295047258,-500.0,0.00030136,7]
[344141941,1733295047268,-500.0,0.00030136,7]
[344141942,1733295047278,-500.0,0.00030136,7]
[344141943,1733295047287,-500.0,0.00030136,7]
[344141944,1733295047296,-500.0,0.00030136,7]
[344141945,1733295047305,-500.0,0.00030136,7]
[344141946,1733295047315,-500.0,0.00030136,7]
[344141947,1733295047325,-193.33145984,0.00030136,7]
[344141948,1733295047335,-500.0,0.00030136,7]
[344141949,1733295047347,-500.0,0.00030136,7]
[344141950,1733295047363,-506.01084769,0.00030136,7]
[344141951,1733295047373,-500.0,0.00030136,7]
[344141952,1733295047382,-500.0,0.00030136,7]
[344141953,1733295047392,-500.0,0.00030136,7]
[344141954,1733295047402,-224.9199071,0.00030136,7]
[344141955,1733295047412,-439.7512739,0.00030136,7]
[344141956,1733295047422,-500.0,0.00030136,7]
[344141957,1733295047431,-500.0,0.00030136,7]
[344141958,1733295047441,-500.0,0.00030136,7]
[344141959,1733295047451,-504.51157849,0.00030136,7]
[344141960,1733295047462,-500.0,0.00030136,7]
[344141961,1733295047471,-500.0,0.00030136,7]
[344141962,1733295047481,-500.0,0.00030136,7]
[344141963,1733295047491,-500.0,0.00030136,7]
[344141964,1733295047501,-500.0,0.00030136,7]
[344141965,1733295047510,-500.0,0.00030136,7]
[344141966,1733295047520,-500.0,0.00030136,7]
[344141967,1733295047529,-500.0,0.00030136,7]
[344141968,1733295047538,-500.0,0.00030136,7]
[344141969,1733295047547,-500.0,0.00030136,7]
[344141970,1733295047557,-500.0,0.00030136,7]
[344141971,1733295047566,-506.0134615,0.00030136,7]
[344141972,1733295047575,-500.0,0.00030136,7]
[344141973,1733295047584,-500.0,0.00030136,7]
[344141974,1733295047593,-500.0,0.00030136,7]
[344141975,1733295047603,-500.0,0.00030136,7]
[344141976,1733295047612,-275.22252232,0.00030136,7]
[344141977,1733295047621,-502.04279711,0.00030136,7]
[344141978,1733295047630,-500.0,0.00030171,7]
[344141979,1733295047640,-500.0,0.00030171,7]
[344141980,1733295047650,-500.0,0.00030171,7]
[344141981,1733295047659,-503.93387886,0.00030173,5]
[344141982,1733295047668,-500.0,0.00030173,5]
[344141983,1733295047677,-500.0,0.00030173,5]
[344141984,1733295047687,-500.0,0.00030173,5]
[344141985,1733295047696,-198.60346822,0.00030173,5]
[344141986,1733295047705,-1390.27,0.000302,2]
[344141987,1733295047714,-300.0,0.000302,2]
[344141988,1733295047724,-160.44040301,0.000302,2]
[344141989,1733295047733,-1737.96846245,0.0003029,2]
[344141990,1733295047742,-153.36,0.000303,31]
[344141991,1733295047753,-153.36,0.000303,31]
[344141992,1733295047763,-153.36,0.000303,31]
[344141993,1733295047773,-153.36,0.000303,31]
[344141994,1733295047783,-241.3786772,0.000303,7]
[344141995,1733295047793,-241.3786772,0.000303,7]
[344141996,1733295047802,-241.3786772,0.000303,7]
[344141997,1733295047812,-289.401398,0.00030318,2]
[344141998,1733295047822,-500.0,0.00030336,7]
[344141999,1733295047832,-500.0,0.00030336,7]
[344142000,1733295047842,-500.0,0.00030336,7]
[344142001,1733295047852,-151.0,0.000304,7]
[344142002,1733295047861,-420.0,0.00030409,2]
[344142003,1733295047870,-268.0,0.00030411,2]
[344142004,1733295047880,-500.0,0.00030447,7]
[344142005,1733295047893,-500.0,0.00030447,7]
[344142006,1733295047902,-150.0,0.00030448,2]
[344142007,1733295047911,-532.0,0.00030448,2]
[344142008,1733295047920,-2172.0,0.00030448,2]
[344142009,1733295047931,-2376.0,0.00030448,2]
[344142010,1733295047940,-150.06,0.00030448,2]
[344142011,1733295047949,-161.25,0.0003047,7]
[344142012,1733295047959,-500.0,0.0003047,7]
[344142013,1733295047970,-500.0,0.0003047,7]
[344142014,1733295047979,-500.0,0.00030499,7]
[344142015,1733295047988,-434.3,0.00030499,7]
[344142016,1733295047998,-160.440403,0.00030511,2]
[344142017,1733295048010,-289.401398,0.00030684,2]
[344142018,1733295048019,-151.0,0.00030699,7]
[344142019,1733295048029,-500.0,0.0003072,7]
[344142020,1733295048039,-1000.0,0.00030721,5]
[344142021,1733295048050,-1000.0,0.00030721,5]
[344142022,1733295048061,-160.440403,0.00030822,2]
[344142023,1733295048072,-151.22578834,0.00030869,2]
[344142024,1733295048083,-420.0,0.00030977,2]
[344142025,1733295048093,-500.0,0.00030998,7]
[344142026,1733295048104,-500.0,0.00030999,7]
[344142027,1733295048114,-500.0,0.00031089,7]
[344142028,1733295048124,-543.13034252,0.00031104,2]
[344142029,1733295048134,-160.440403,0.00031133,2]
[344142030,1733295048144,-1737.96846245,0.00031133,2]
[344142031,1733295048154,-666.0,0.00031133,2]
[344142032,1733295048164,-6666.0,0.0003114,2]
[344142033,1733295048173,-1111.668574,0.00031189,30]
[344142034,1733295048182,-150.0,0.000312,5]
[344142035,1733295048192,-300.0,0.000312,4]
[344142036,1733295048202,-500.0,0.00031232,2]
[344142037,1733295048211,-231.68641838,0.00031232,2]
[344142038,1733295048221,-285.8683188,0.00031232,2]
[344142039,1733295048231,-258.83253712,0.00031232,2]
[344142040,1733295048240,-616.70020149,0.00031232,2]
[344142041,1733295048250,-13643.73396974,0.00031233,2]
[344142042,1733295048265,-242.66178302,0.00031233,2]
[344142043,1733295048276,-151.0,0.00031233,7]
[344142044,1733295048285,-151.0,0.00031233,7]
[344142045,1733295048295,-151.0,0.00031233,7]
[344142046,1733295048305,-151.0,0.00031233,7]
[344142047,1733295048315,-231.961372,0.00031233,7]
[344142048,1733295048325,-151.0,0.00031233,7]
[344142049,1733295048335,-151.0,0.00031233,7]
[344142050,1733295048345,-151.0,0.00031233,7]
[344142051,1733295048355,-151.0,0.00031233,7]
[344142052,1733295048364,-166.150988,0.00031233,7]
[344142053,1733295048374,-1662144.13161488,0.00031233,10]
[344142054,1733295048392,-190018.92611155,0.00031233,10]
[344142057,1733295135042,1595.84961192,0.00031195,120]
[344142058,1733295142879,2390.39079722,0.00031195,120]
[344142060,1733295493064,151.0,0.0003,120]
[344142062,1733295614484,151.0,0.0003,120]
[344142063,1733295655610,165.863874,0.00013973,2]
[344142064,1733295702457,2378.9,0.00031195,90]
[344142068,1733295952111,-500.0,0.00027397,2]
[344142069,1733295952135,-393.811444,0.00027673,2]
[344142070,1733295952155,-222.0647927,0.00028826,2]
[344142071,1733295952179,-71.15060933,0.0002883,2]
[344142072,1733296029100,-300.0,0.0002883,2]
[344142073,1733296029121,-300.0,0.0002883,2]
[344142074,1733296029144,-2172.0,0.00028831,2]
[344142075,1733296029168,-47.74101533,0.00028831,2]
[344142076,1733296041093,-2328.25898467,0.00028831,2]
[344142077,1733296041116,-5766.39655705,0.00029483,2]
[344142078,1733296043140,-4525.22427774,0.00029483,2]
[344142079,1733296053095,-627.6921036,0.00028886,2]
[344142080,1733296053120,-550.98454825,0.00029483,2]
[344142081,1733296054119,-342.45909583,0.00029483,2]
[344142086,1733296168256,10794.15280663,0.00030136,120]
[344142087,1733296168278,178.44,0.00030136,120]
[344142088,1733296168302,5337.85967189,0.00030136,120]
[344142089,1733296168327,682.26692326,0.00030136,120]
[344142090,1733296168347,1000.0,0.00030136,120]
[344142091,1733296168367,1000.0,0.00030136,120]
[344142120,1733296232135,-300.0,0.00028835,2]
[344142121,1733296232145,-300.0,0.00028835,2]
[344142122,1733296232155,-830.04845606,0.00028836,2]
[344142182,1733296238394,-113.09957038,0.00028836,2]
[344142392,1733296243139,-131.89187178,0.00028836,2]
[344142393,1733296243200,-52.08706435,0.00028836,2]
[344142394,1733296243213,-1232.11205,0.00028836,2]
[344142412,1733296246002,-3864.52,0.00028836,2]
[344142413,1733296246017,-2625.78124384,0.00028836,2]
[344142414,1733296246139,-38.05101065,0.00028836,2]
[344142418,1733296964040,165.909111,0.00013973,2]
[344142420,1733297225107,-202.0,0.00023,2]
[344142421,1733297225129,-4455.9232928,0.00024406,2]
[344142422,1733297225151,-637.3716315,0.00024466,2]
[344142423,1733297225172,-1549.3522185,0.00024523,2]
[344142424,1733297225298,-2775.7469114,0.0002463,2]
[344142425,1733297225322,-250.0,0.00024779,2]
[344142426,1733297225347,-300.0,0.00025149,2]
[344142427,1733297225368,-5468.85682626,0.00025149,2]
[344142428,1733297249166,-1918.57247709,0.00025149,2]
[344142429,1733297251108,-2180.27379722,0.00025049,2]
[344142430,1733297251129,-4234.97373323,0.00025149,2]
[344142432,1733297323664,802.80710175,0.00025,120]
[344142438,1733297349115,-202.2638604,0.00024518,2]
[344142439,1733297349135,-241.5722308,0.00024805,2]
[344142440,1733297349156,-1363.33720176,0.00025,2]
[344142441,1733297349175,-300.0,0.00025089,2]
[344142442,1733297349196,-21382.02679763,0.00025089,2]
[344142443,1733297356283,-812.97320237,0.00025089,2]
[344142444,1733297356304,-1309.8214248,0.0002509,2]
[344142445,1733297360104,-3259.2759595,0.0002509,2]
[344142446,1733297369167,-37218.41389441,0.0002509,2]
[344142523,1733297435159,-535.875209,0.00024829,2]
[344142524,1733297435169,-482.7538312,0.0002509,2]
[344142525,1733297435179,-170.775414,0.00025151,2]
[344142526,1733297435188,-272.92698166,0.00025706,2]
[344142527,1733297435200,-300.0,0.00025805,2]
[344142528,1733297435210,-300.0,0.00025805,2]
[344142529,1733297435221,-251.55512284,0.00025805,10]
[344142530,1733297435230,-3285.48232451,0.00025806,2]
[344142531,1733297435242,-3290.08792848,0.00025806,2]
[344142545,1733297438394,-515.75988074,0.00025806,2]
[344142546,1733297438403,-24900.0,0.00025806,2]
[344142547,1733297438412,-530.40466916,0.00026,2]
[344142548,1733297438517,-1660.846812,0.00026,30]
[344142549,1733297438527,-568.13333114,0.00026021,2]
[344142550,1733297438536,-463.68845522,0.00026021,2]
[344142551,1733297438545,-568.13333114,0.00026021,2]
[344142552,1733297438554,-568.13333114,0.00026021,2]
[344142553,1733297438563,-568.13333114,0.00026021,2]
[344142554,1733297438572,-568.13333114,0.00026021,2]
[344142556,1733297438584,-568.13333114,0.00026021,2]
[344142557,1733297438593,-568.13333114,0.00026021,2]
[344142558,1733297438602,-568.13333114,0.00026021,2]
[344142559,1733297438611,-568.13333114,0.00026021,2]
[344142560,1733297438622,-568.13333114,0.00026021,2]
[344142561,1733297438632,-568.13333114,0.00026021,2]
[344142562,1733297438641,-568.13333114,0.00026021,2]
[344142563,1733297438650,-568.13333114,0.00026021,2]
[344142564,1733297438660,-568.13333114,0.00026021,2]
[344142565,1733297438670,-568.13333114,0.00026021,2]
[344142566,1733297438679,-568.13333114,0.00026021,2]
[344142567,1733297438689,-568.13333114,0.00026021,2]
[344142568,1733297438699,-568.13333114,0.00026021,2]
[344142569,1733297438708,-568.13333114,0.00026021,2]
[344142570,1733297438720,-392.44421054,0.00026021,2]
[344142571,1733297438732,-175.6891206,0.00026021,2]
[344142572,1733297438741,-568.13333114,0.00026021,2]
[344142573,1733297438751,-532.38897826,0.00026021,2]
[344142911,1733297443404,-35.74435288,0.00026021,2]
[344142912,1733297443413,-568.13333114,0.00026021,2]
[344142913,1733297443422,-568.13333114,0.00026021,2]
[344142914,1733297443431,-568.13333114,0.00026021,2]
[344142915,1733297443439,-568.13333114,0.00026021,2]
[344142916,1733297443447,-568.13333114,0.00026021,2]
[344142917,1733297443456,-568.13333114,0.00026021,2]
[344142918,1733297443464,-568.13333114,0.00026021,2]
[344142919,1733297443473,-568.13333114,0.00026021,2]
[344142920,1733297443481,-568.13333114,0.00026021,2]
[344142921,1733297443490,-568.13333114,0.00026021,2]
[344142922,1733297443499,-568.13333114,0.00026021,2]
[344142923,1733297443508,-568.13333114,0.00026021,2]
[344142924,1733297443516,-568.13333114,0.00026021,2]
[344142925,1733297443525,-568.13333114,0.00026021,2]
[344142926,1733297443535,-568.13333114,0.00026021,2]
[344142927,1733297443545,-568.13333114,0.00026021,2]
[344142928,1733297443555,-568.13333114,0.00026021,2]
[344142929,1733297443564,-568.13333114,0.00026021,2]
[344142930,1733297443575,-568.13333114,0.00026021,2]
[344142931,1733297443588,-568.13333114,0.00026021,2]
[344142932,1733297443597,-568.13333114,0.00026021,2]
[344142933,1733297443607,-568.13333114,0.00026021,2]
[344142934,1733297443618,-568.13333114,0.00026021,2]
[344142935,1733297443628,-568.13333114,0.00026021,2]
[344142936,1733297443638,-568.13333114,0.00026021,2]
[344142937,1733297443652,-568.13333114,0.00026021,2]
[344142938,1733297443662,-568.13333114,0.00026021,2]
[344142939,1733297443672,-568.13333114,0.00026021,2]
[344142940,1733297443682,-568.13333114,0.00026021,2]
[344142941,1733297443691,-529.3540855,0.00026021,2]
[344142949,1733297446133,-38.77924564,0.00026021,2]
[344142950,1733297446143,-568.13333114,0.00026021,2]
[344142951,1733297446153,-500.0,0.000261,2]
[344142952,1733297446163,-367.19024637,0.000261,2]
[344142953,1733297446173,-282.96156645,0.000261,2]
[344142954,1733297446182,-502.4794918,0.000261,2]
[344142955,1733297446192,-500.0,0.000261,2]
[344142956,1733297446202,-272.92698163,0.00026481,2]
[344142957,1733297446211,-1000.0,0.00026648,2]
[344142958,1733297446220,-180.66628087,0.00026961,15]
[344142959,1733297446230,-272.92698163,0.00027257,2]
[344142960,1733297446239,-258.9225177,0.00027577,2]
[344142961,1733297446249,-1000.0,0.0002765,5]
[344142962,1733297446259,-420.0,0.00027932,2]
[344142963,1733297446268,-2000.0,0.00028,2]
[344142964,1733297446277,-10540.98355082,0.00028,120]
[344142965,1733297446286,-272.92698163,0.00028032,2]
[344142966,1733297446295,-420.0,0.00028386,2]
[344142967,1733297446304,-272.92698163,0.00028807,2]
[344142968,1733297446313,-701.0967788,0.00029,4]
[344142969,1733297446322,-1069.99231768,0.00029,2]
[344142970,1733297446331,-1341.99083003,0.00029077,2]
[344142971,1733297446340,-150.0,0.00029189,2]
[344142972,1733297446349,-156.6288,0.00029222,2]
[344142973,1733297446358,-1963.109826,0.00029222,2]
[344142974,1733297446367,-169.182907,0.00029222,2]
[344142975,1733297446377,-278.87126179,0.00029483,2]
[344142976,1733297446386,-361.97477656,0.00029483,2]
[344142977,1733297446395,-272.92698163,0.00029582,2]
[344142978,1733297446404,-1963.109826,0.00029588,2]
[344142979,1733297446414,-156.6288,0.0002971,2]
[344142980,1733297446423,-169.182907,0.0002971,2]
[344142981,1733297446432,-155.99924048,0.00029813,2]
[344142982,1733297446442,-1963.109826,0.00029953,2]
[344142983,1733297446452,-6424.3707637,0.0003,15]
[344142984,1733297446464,-1928.6,0.0003,15]
[344142985,1733297611607,166.121001,0.00013973,2]
[344142989,1733297972924,4854.6,0.0002,2]
[344142991,1733297999690,57437.1537737,0.0001,2]
[344142999,1733298357137,-278.11914313,0.00023696,2]
[344143000,1733298425100,-964.84152384,0.00023459,2]
[344143001,1733298425121,-663.62233028,0.00023696,2]
[344143002,1733298427097,-957.38295026,0.00023696,2]
[344143003,1733298427119,-322.4805044,0.00023741,2]
[344143004,1733298427141,-250.0,0.00023796,2]
[344143005,1733298427162,-418.1679079,0.00024469,2]
[344143006,1733298427182,-504.6136039,0.00024581,2]
[344143007,1733298427204,-300.0,0.00024628,2]
[344143008,1733298427225,-300.0,0.00024628,2]
[344143009,1733298427247,-6485.73712701,0.00024629,2]
[344143010,1733298428092,-5009.29915721,0.00024629,2]
[344143011,1733298434092,-982.64600603,0.00024629,2]
[344143012,1733298437145,-2247.52860855,0.00024629,2]
[344143018,1733298538519,-519.7149948,0.00023869,2]
[344143019,1733298538542,-1283.0233044,0.00024081,2]
[344143020,1733298538569,-300.0,0.00024628,2]
[344143021,1733298538592,-300.0,0.00024628,2]
[344143022,1733298538617,-10174.7891012,0.00024629,2]
[344143023,1733298538639,-207.5455741,0.00024658,2]
[344143024,1733298538662,-1040.89141712,0.00024764,2]
[344143025,1733298538703,-2378.5076117,0.00024777,2]
[344143026,1733298538725,-428.115774,0.00024864,2]
[344143027,1733298538747,-202.263856,0.00024893,2]
[344143028,1733298538768,-169.990189,0.00024915,2]
[344143029,1733298538791,-500.0,0.00024999,2]
[344143030,1733298538814,-500.0,0.00024999,2]
[344143031,1733298538837,-500.0,0.00024999,2]
[344143032,1733298538861,-500.0,0.00024999,2]
[344143033,1733298538885,-500.0,0.00024999,2]
[344143034,1733298538910,-500.0,0.00024999,2]
[344143035,1733298538938,-275.5179056,0.00024999,2]
[344143036,1733298538962,-500.0,0.00024999,2]
[344143037,1733298538987,-500.0,0.00024999,2]
[344143038,1733298539012,-500.0,0.00024999,2]
[344143039,1733298539035,-500.0,0.00024999,2]
[344143040,1733298539058,-500.0,0.00024999,2]
[344143041,1733298539081,-500.0,0.00024999,2]
[344143042,1733298539105,-500.0,0.00024999,2]
[344143043,1733298539128,-500.0,0.00024999,2]
[344143044,1733298539151,-500.0,0.00024999,2]
[344143045,1733298539174,-500.0,0.00024999,2]
[344143046,1733298539198,-500.0,0.00024999,2]
[344143047,1733298539221,-500.0,0.00024999,2]
[344143048,1733298539245,-500.0,0.00024999,2]
[344143049,1733298539268,-500.0,0.00024999,2]
[344143050,1733298539291,-500.0,0.00024999,2]
[344143051,1733298539316,-500.0,0.00024999,2]
[344143052,1733298539339,-500.0,0.00024999,2]
[344143053,1733298539363,-500.0,0.00024999,2]
[344143054,1733298539384,-500.0,0.00024999,2]
[344143055,1733298539406,-500.0,0.00024999,2]
[344143056,1733298539428,-500.0,0.00024999,2]
[344143057,1733298539452,-500.0,0.00024999,2]
[344143058,1733298539474,-500.0,0.00024999,2]
[344143059,1733298539495,-500.0,0.00024999,2]
[344143060,1733298539517,-500.0,0.00024999,2]
[344143061,1733298539539,-500.0,0.00024999,2]
[344143062,1733298539562,-500.0,0.00024999,2]
[344143063,1733298539584,-500.0,0.00024999,2]